fUST/lending_fUST_20251023
["ID","MTS","AMOUNT","RATE_DAILY","PERIOD"]
[392112946,1761168638436,-264.27842763,0.00027452,24]
[392112947,1761168638445,-2628.18964323,0.000275,2]
[392112948,1761168638455,-720.0,0.00027543,30]
[392112949,1761168638464,-294.520661,0.00027548,2]
[392112950,1761168638473,-159.354228,0.00027548,2]
[392112951,1761168638481,-168.412364,0.00027548,2]
[392112952,1761168638491,-207.89731842,0.00027548,2]
[392112953,1761168638502,-194.05663158,0.00027548,2]
[392112954,1761168638511,-107.94336842,0.00027548,2]
[392112955,1761168638522,-52.83821458,0.00027548,2]
[392112956,1761168638532,-160.78158,0.00027548,2]
[392112957,1761168638541,-160.78158,0.00027548,2]
[392112958,1761168638550,-2691.25,0.000276,2]
[392112959,1761168638560,-1358.33,0.000276,7]
[392112960,1761168638570,-3000.0,0.00027612,5]
[392112961,1761168638579,-3000.0,0.00027612,5]
[392112962,1761168638589,-3000.0,0.00027612,5]
[392112963,1761168638599,-1500.0,0.00027629,5]
[392112964,1761168638608,-1500.0,0.00027629,5]
[392112965,1761168638618,-270.76090602,0.00027629,5]
[392112966,1761168638628,-1500.0,0.00027629,5]
[392112967,1761168638637,-160.0,0.0002766,2]
[392112968,1761168638647,-670.0822678,0.00027744,2]
[392112969,1761168638657,-204.30053412,0.0002799,2]
[392112970,1761168638666,-15194.17797009,0.00028,2]
[392112971,1761168638676,-787.72292643,0.00028,2]
[392112972,1761168638686,-3500.0,0.0002816,5]
[392112973,1761168638696,-3500.0,0.0002816,5]
[392112974,1761168638706,-2000.0,0.00028177,5]
[392112975,1761168638715,-2000.0,0.00028177,5]
[392112976,1761168638726,-2000.0,0.00028177,5]
[392112977,1761168638736,-260.0,0.00028208,2]
[392112978,1761168638746,-324.11392444,0.00028271,2]
[392112979,1761168638756,-1623.52233095,0.00028318,2]
[392112980,1761168638765,-313.59,0.0002846,4]
[392112981,1761168638775,-477.88812462,0.0002847,2]
[392112982,1761168638784,-32491.25403941,0.000285,7]
[392112983,1761168638794,-4000.0,0.00028708,5]
[392112984,1761168638804,-3387.71567513,0.00028708,5]
[392112985,1761168638814,-500.0,0.00028725,5]
[392112986,1761168638824,-500.0,0.00028725,5]
[392112987,1761168638838,-457.30267343,0.00028725,5]
[392112988,1761168638847,-587.0,0.00028752,2]
[392112989,1761168638858,-360.0,0.00028756,2]
[392112990,1761168638868,-26626.65971563,0.0002876,2]
[392112991,1761168638878,-990.68799871,0.0002876,2]
[392112992,1761168638887,-4000.0,0.0002876,5]
[392112993,1761168638898,-250.40585376,0.0002876,2]
[392112994,1761168638907,-2319.21272566,0.0002876,2]
[392112995,1761168638916,-151.0,0.0002876,30]
[392112996,1761168638926,-151.0,0.0002876,30]
[392112997,1761168638936,-491.606358,0.0002876,30]
[392112998,1761168638945,-491.606358,0.0002876,30]
[392112999,1761168638955,-491.606358,0.0002876,30]
[392113000,1761168638965,-491.606358,0.0002876,30]
[392113001,1761168638975,-151.0,0.0002876,30]
[392113002,1761168638984,-151.0,0.0002876,30]
[392113003,1761168638994,-151.0,0.0002876,30]
[392113004,1761168639004,-151.0,0.0002876,30]
[392113005,1761168639013,-151.0,0.0002876,30]
[392113006,1761168639023,-169.89105494,0.000288,7]
[392113007,1761168639033,-502.43854319,0.000288,5]
[392113008,1761168639043,-500.0,0.000288,5]
[392113009,1761168639053,-500.0,0.000288,2]
[392113010,1761168639062,-882.29458223,0.00029,2]
[392113011,1761168639072,-1169.40395253,0.00029,2]
[392113012,1761168639082,-502.61799314,0.00029,7]
[392113013,1761168639091,-2351.0,0.00029014,2]
[392113014,1761168639101,-60061.74073658,0.0002904,2]
[392113015,1761168639111,-228.336,0.00029092,21]
[392113016,1761168639120,-1095.87745763,0.00029256,5]
[392113017,1761168639130,-460.0,0.00029304,2]
[392113018,1761168639139,-614.53254891,0.00029348,5]
[392113019,1761168639231,-1000.0,0.00029348,2]
[392113020,1761168639241,-2021.11721159,0.0002939,5]
[392113021,1761168639251,-160.0,0.00029553,2]
[392113022,1761168639260,-403.14601822,0.00029554,2]
[392113023,1761168639269,-95000.0,0.0002956,2]
[392113024,1761168639279,-1623.52233095,0.000296,2]
[392113025,1761168639288,-627.18,0.000297,5]
[392113026,1761168639297,-15826.95654765,0.00029845,2]
[392113027,1761168639307,-560.0,0.00029852,2]
[392113028,1761168639316,-501.21083915,0.00029896,2]
[392113029,1761168639326,-10143.17145259,0.000299,2]
[392113030,1761168639336,-8447.86149279,0.000299,2]
[392113031,1761168639345,-150.0,0.00029973,5]
[392113032,1761168639355,-300.0,0.00029973,5]
[392113033,1761168639364,-294.520661,0.0003,15]
[392113034,1761168639374,-168.412364,0.0003,15]
[392113035,1761168639383,-401.95395,0.0003,15]
[392113036,1761168639392,-772130.37286292,0.0003,15]
[392113037,1761168639401,-236.823,0.0003,2]
[392113038,1761168639411,-151.0,0.0003,30]
[392113039,1761168639420,-285.50631,0.0003,30]
[392113040,1761168639429,-491.606358,0.0003,30]
[392113041,1761168639439,-491.606358,0.0003,30]
[392113042,1761168639449,-491.606358,0.0003,30]
[392113044,1761168639460,-491.606358,0.0003,30]
[392113045,1761168639469,-151.0,0.0003,30]
[392113046,1761168639480,-151.0,0.0003,30]
[392113048,1761168639490,-151.0,0.0003,30]
[392113050,1761168639499,-151.0,0.0003,30]
[392113051,1761168639509,-864.0,0.00030297,30]
[392113052,1761168639519,-583.40506399,0.00030373,2]
[392113053,1761168639528,-660.0,0.000304,2]
[392113054,1761168639538,-541.13802347,0.0003047,2]
[392113055,1761168639548,-250.0,0.00030521,5]
[392113056,1761168639558,-156.0,0.0003074,42]
[392113057,1761168639567,-760.0,0.00030948,2]
[392113058,1761168639577,-5000.0,0.00030978,2]
[392113060,1761168639586,-670.0822678,0.00031016,2]
[392113061,1761168639596,-350.0,0.00031068,5]
[392113062,1761168639608,-823.0,0.00031165,2]
[392113063,1761168639618,-204.30053412,0.0003129,2]
[392113064,1761168639628,-1358.33,0.000313,7]
[392113065,1761168639638,-860.0,0.00031496,2]
[392113066,1761168639648,-3292.0,0.00031592,3]
[392113067,1761168639657,-450.0,0.00031616,5]
[392113068,1761168639667,-9999.999999,0.00032,2]
[392113070,1761168639676,-1000.59911718,0.00032,5]
[392113071,1761168639686,-960.0,0.00032044,2]
[392113072,1761168639695,-435.92436597,0.00032164,5]
[392113073,1761168639704,-250.0,0.00032328,2]
[392113074,1761168639715,-170.86201625,0.00032379,10]
[392113075,1761168639725,-157.34573935,0.00032379,10]
[392113076,1761168639734,-604.38792231,0.0003247,2]
[392113077,1761168639744,-1037.1645582,0.00032475,2]
[392113078,1761168639754,-2691.25,0.000325,2]
[392113080,1761168639764,-10597.24,0.000325,7]
[392113082,1761168639773,-1060.0,0.00032592,2]
[392113084,1761168639782,-746.0,0.00032605,2]
[392113086,1761168639792,-152.06,0.00032738,15]
[392113087,1761168639801,-746.0,0.00032808,2]
[392113089,1761168639810,-152.06,0.00032838,15]
[392113090,1761168639820,-746.0,0.00032867,2]
[392113091,1761168639832,-3457.59,0.00032876,120]
[392113092,1761168639842,-152.06,0.00032938,60]
[392113093,1761168639853,-294.520661,0.00033,5]
[392113094,1761168639863,-168.412364,0.00033,5]
[392113095,1761168639873,-401.95395,0.00033,5]
[392113096,1761168639883,-168.0,0.00033023,2]
[392113097,1761168639892,-152.06,0.00033038,60]
[392113098,1761168639903,-236.823,0.00033042,2]
[392113099,1761168639912,-746.0,0.00033053,2]
[392113100,1761168639921,-152.06,0.00033138,60]
[392113101,1761168639931,-1160.0,0.00033139,2]
[392113102,1761168639940,-535.381987,0.00033165,2]
[392113103,1761168639950,-152.06,0.00033238,60]
[392113104,1761168639959,-204.30053412,0.00033304,2]
[392113105,1761168639968,-632.0,0.00033314,2]
[392113106,1761168639977,-983.0,0.00033314,2]
[392113107,1761168639986,-2164.0,0.00033314,2]
[392113108,1761168639995,-411.0,0.00033314,2]
[392113109,1761168640005,-1000.0,0.00033327,30]
[392113110,1761168640014,-152.06,0.00033338,60]
[392113111,1761168640023,-746.0,0.00033373,7]
[392113112,1761168640033,-157.34573934,0.0003338,10]
[392113113,1761168640043,-746.0,0.00033405,2]
[392113114,1761168640053,-152.06,0.00033438,60]
[392113115,1761168640062,-152.06,0.00033538,60]
[392113116,1761168640071,-152.06,0.00033638,60]
[392113118,1761168640081,-746.0,0.00033647,2]
[392113120,1761168640090,-637.97539759,0.00033687,2]
[392113122,1761168640099,-746.0,0.0003369,2]
[392113124,1761168640110,-3457.59,0.00033698,120]
[392113126,1761168640119,-152.1468899,0.00033738,60]
[392113128,1761168640129,-1152.0,0.0003378,2]
[392113130,1761168640138,-746.0,0.00033793,2]
[392113132,1761168640147,-1358.33,0.000338,7]
[392113134,1761168640156,-746.0,0.00033818,7]
[392113136,1761168640175,-746.0,0.00033838,2]
[392113138,1761168640184,-746.0,0.00033999,2]
[392113140,1761168640193,-746.0,0.00034146,2]
[392113142,1761168640202,-746.0,0.0003416,2]
[392113144,1761168640212,-4206.0,0.00034238,2]
[392113145,1761168640221,-670.0822678,0.00034287,2]
[392113147,1761168640231,-746.0,0.00034294,2]
[392113149,1761168640240,-294.520661,0.00034349,15]
[392113151,1761168640250,-159.354228,0.00034349,15]
[392113153,1761168640259,-168.412364,0.00034349,15]
[392113155,1761168640268,-401.95395,0.00034349,15]
[392113157,1761168640278,-2248.0,0.00034399,3]
[392113159,1761168640287,-667.63782116,0.0003447,120]
[392113161,1761168640296,-746.0,0.00034473,7]
[392113163,1761168640306,-3457.59,0.0003452,120]
[392113165,1761168640315,-746.0,0.00034772,2]
[392113167,1761168640324,-746.0,0.00034779,7]
[392113169,1761168640334,-746.0,0.0003479,2]
[392113171,1761168640343,-746.0,0.00034881,2]
[392113173,1761168640355,-746.0,0.00034893,2]
[392113174,1761168640366,-746.0,0.00035086,2]
[392113176,1761168640376,-264.131979,0.00035342,2]
[392113178,1761168640386,-403.14601822,0.00035342,120]
[392113179,1761168640396,-3457.59,0.00035342,120]
[392113180,1761168640405,-250.0,0.00035479,10]
[392113181,1761168640415,-250.0,0.00035479,10]
[392113182,1761168640424,-250.0,0.00035479,10]
[392113183,1761168640434,-250.0,0.00035479,10]
[392113184,1761168640443,-250.738656,0.00035479,10]
[392113185,1761168640453,-252484.32134085,0.00035479,20]
[392113186,1761168640463,-478.2606402,0.00035479,2]
[392113187,1761168640473,-421.28738385,0.00035479,2]
[392113188,1761168640483,-935.77559322,0.00035479,2]
[392113190,1761168640492,-1009.999999,0.00035479,2]
[392113192,1761168640501,-151.0,0.00035479,30]
[392113194,1761168640511,-183.56424,0.00035479,30]
[392113196,1761168640520,-151.0,0.00035479,30]
[392113198,1761168640530,-491.606358,0.00035479,30]
[392113200,1761168640539,-491.606358,0.00035479,30]
[392113201,1761168640549,-491.606358,0.00035479,30]
[392113202,1761168640559,-491.606358,0.00035479,30]
[392113203,1761168640569,-151.0,0.00035479,30]
[392113204,1761168640579,-151.0,0.00035479,30]
[392113205,1761168640589,-151.0,0.00035479,30]
[392113206,1761168640599,-164.0,0.00035671,80]
[392113207,1761168640613,-1065.89137556,0.00035707,5]
[392113208,1761168640622,-359.47533648,0.00035893,15]
[392113209,1761168640632,-1000.0,0.00035994,15]
[392113210,1761168640641,-3457.59,0.00036164,120]
[392113211,1761168640651,-2691.25,0.000362,14]
[392113212,1761168640660,-203.47398103,0.0003621,2]
[392113213,1761168640669,-264.66288695,0.0003624,2]
[392113214,1761168640678,-204.30053412,0.00036304,3]
[392113215,1761168640687,-632.0,0.00036314,2]
[392113216,1761168640696,-983.0,0.00036314,2]
[392113217,1761168640705,-2164.0,0.00036314,2]
[392113218,1761168640714,-411.0,0.00036314,2]
[392113219,1761168640723,-10597.24,0.000364,14]
[392113220,1761168640732,-294.520661,0.00036462,5]
[392113221,1761168640741,-159.354228,0.00036462,5]
[392113222,1761168640750,-168.412364,0.00036462,5]
[392113223,1761168640759,-401.95395,0.00036462,5]
[392113224,1761168640769,-403.14601822,0.00036464,7]
[392113225,1761168640778,-730.88772001,0.0003647,120]
[392113226,1761168640788,-1613.0,0.00036615,2]
[392113227,1761168640797,-1000.0,0.0003666,30]
[392113228,1761168640807,-244.0,0.0003666,30]
[392113229,1761168640816,-643.3936015,0.00036889,2]
[392113230,1761168640827,-3457.59,0.00036986,120]
[392113231,1761168640839,-643.3936015,0.00037,120]
[392113232,1761168640849,-1358.33,0.00037,7]
[392113233,1761168640864,-10143.17145259,0.00037109,2]
[392113234,1761168640875,-5000.0,0.00037478,4]
[392113235,1761168640885,-670.0822678,0.00037558,2]
[392113236,1761168640895,-858.64324921,0.00037799,3]
[392113237,1761168640907,-1014.79278425,0.000378,2]
[392113238,1761168640916,-3457.59,0.00037808,120]
[392113239,1761168640927,-500.0,0.00037962,30]
[392113240,1761168640936,-500.0,0.00037971,30]
[392113241,1761168640946,-168.69300459,0.00038273,7]
[392113242,1761168640956,-500.0,0.00038292,30]
[392113243,1761168640965,-204.30053412,0.00038336,3]
[392113244,1761168640975,-817.20213648,0.00038346,3]
[392113245,1761168640984,-540.0,0.00038356,7]
[392113246,1761168640993,-500.0,0.00038356,7]
[392113247,1761168641002,-500.0,0.00038356,7]
[392113248,1761168641011,-500.0,0.00038356,7]
[392113249,1761168641020,-500.0,0.00038356,2]
[392113250,1761168641029,-500.0,0.00038356,7]
[392113251,1761168641038,-168.9960293,0.00038356,7]
[392113252,1761168641048,-354.74688904,0.00038356,7]
[392113253,1761168641057,-247.31846778,0.00038356,7]
[392113254,1761168641067,-500.0,0.00038356,7]
[392113255,1761168641148,-1303.67,0.00038356,7]
[392113256,1761168641158,-403.14601822,0.00038356,3]
[392113257,1761168641167,-351.41944257,0.00038356,7]
[392113258,1761168641177,-595.41,0.00038356,7]
[392113259,1761168641186,-269.40521474,0.00038356,7]
[392113260,1761168641195,-312.60709047,0.00038356,7]
[392113261,1761168641205,-154.67974283,0.00038356,7]
[392113262,1761168641215,-500.0,0.00038356,2]
[392113263,1761168641225,-500.0,0.00038356,7]
[392113264,1761168641236,-203.08670131,0.00038356,7]
[392113265,1761168641246,-238.75636588,0.00038356,7]
[392113266,1761168641255,-319.55389059,0.00038356,7]
[392113267,1761168641264,-457.16100689,0.00038356,7]
[392113268,1761168641274,-219.66597267,0.00038356,7]
[392113269,1761168641283,-1000.0,0.00038356,120]
[392113270,1761168641292,-500.0,0.00038356,7]
[392113271,1761168641302,-358.57788195,0.00038356,7]
[392113272,1761168641311,-647.95067007,0.00038356,7]
[392113273,1761168641321,-198.68869886,0.00038356,7]
[392113274,1761168641330,-286.66274873,0.00038356,7]
[392113275,1761168641339,-342.93635013,0.00038356,7]
[392113276,1761168641349,-534.25321131,0.00038356,7]
[392113277,1761168641362,-500.0,0.00038356,7]
[392113278,1761168641371,-273.17628654,0.00038356,7]
[392113279,1761168641380,-448.03089427,0.00038356,7]
[392113280,1761168641389,-500.0,0.00038356,7]
[392113281,1761168641398,-1000.0,0.00038356,2]
[392113282,1761168641407,-487.91906228,0.00038356,7]
[392113283,1761168641417,-162.30878499,0.00038356,7]
[392113284,1761168641426,-291.75372923,0.00038356,7]
[392113285,1761168641435,-496.78538792,0.00038356,7]
[392113286,1761168641445,-277.60489427,0.00038356,7]
[392113287,1761168641454,-292.02711664,0.00038356,7]
[392113288,1761168641463,-500.0,0.00038356,7]
[392113289,1761168641472,-500.0,0.00038356,7]
[392113290,1761168641481,-500.0,0.00038356,7]
[392113291,1761168641490,-457.19477797,0.00038356,7]
[392113292,1761168641500,-500.0,0.00038356,7]
[392113293,1761168641509,-189.0705972,0.00038356,7]
[392113294,1761168641518,-165.7571726,0.00038356,7]
[392113295,1761168641532,-157.09952887,0.00038356,7]
[392113296,1761168641542,-386.76964962,0.00038356,7]
[392113297,1761168641551,-500.0,0.00038356,7]
[392113298,1761168641560,-511.12356219,0.00038356,7]
[392113299,1761168641570,-500.0,0.00038356,7]
[392113300,1761168641580,-500.0,0.00038356,7]
[392113301,1761168641590,-500.0,0.00038356,7]
[392113302,1761168641599,-500.0,0.00038356,7]
[392113303,1761168641612,-222.15435582,0.00038356,7]
[392113304,1761168641622,-154.07727595,0.00038356,7]
[392113305,1761168641631,-500.0,0.00038356,7]
[392113306,1761168641640,-500.0,0.00038356,7]
[392113307,1761168641650,-524.38507042,0.00038356,7]
[392113308,1761168641659,-500.0,0.00038356,7]
[392113309,1761168641668,-500.0,0.00038356,2]
[392113310,1761168641678,-531.93814983,0.00038356,7]
[392113311,1761168641687,-1000.0,0.00038356,5]
[392113312,1761168641697,-160.20200319,0.00038356,7]
[392113313,1761168641707,-424.64947043,0.00038356,7]
[392113314,1761168641716,-340.18308612,0.00038356,7]
[392113315,1761168641726,-162.53702627,0.00038356,7]
[392113316,1761168641735,-266.14660862,0.00038356,7]
[392113317,1761168641744,-178.98782184,0.00038356,7]
[392113318,1761168641754,-194.42960717,0.00038356,7]
[392113319,1761168641763,-200.0,0.00038356,7]
[392113320,1761168641773,-500.0,0.00038356,7]
[392113321,1761168641782,-563.564554,0.00038356,7]
[392113322,1761168641791,-187.76706673,0.00038356,7]
[392113323,1761168641801,-558.74,0.00038356,7]
[392113324,1761168641810,-501.67016466,0.00038356,7]
[392113325,1761168641820,-382.99734782,0.00038356,7]
[392113326,1761168641835,-380.52774044,0.00038356,7]
[392113327,1761168641844,-581.06,0.00038356,7]
[392113328,1761168641854,-344.8076518,0.00038356,7]
[392113329,1761168641864,-242.05492627,0.00038356,7]
[392113330,1761168641875,-170.30839777,0.00038356,7]
[392113331,1761168641884,-296.41562232,0.00038356,7]
[392113332,1761168641893,-500.0,0.00038356,7]
[392113333,1761168641904,-500.0,0.00038356,7]
[392113334,1761168641913,-238.83272752,0.00038356,7]
[392113335,1761168641922,-242.20811233,0.00038356,7]
[392113336,1761168641933,-241.69439862,0.00038356,7]
[392113337,1761168641942,-171.63672984,0.00038356,7]
[392113338,1761168641951,-606.25544683,0.00038356,7]
[392113339,1761168641960,-500.0,0.00038356,7]
[392113340,1761168641969,-500.0,0.00038356,7]
[392113341,1761168641978,-2565.11,0.00038356,7]
[392113342,1761168641988,-603.81491497,0.00038356,7]
[392113343,1761168641997,-156.38528391,0.00038356,7]
[392113344,1761168642007,-362.76359806,0.00038356,7]
[392113345,1761168642016,-5859.34,0.00038356,7]
[392113346,1761168642025,-500.0,0.00038356,7]
[392113347,1761168642035,-205.41868019,0.00038356,7]
[392113348,1761168642044,-253.865749,0.00038356,7]
[392113349,1761168642053,-425.23018006,0.00038356,7]
[392113350,1761168642063,-201.9189294,0.00038356,7]
[392113351,1761168642072,-349.41750686,0.00038356,7]
[392113352,1761168642081,-195.40019124,0.00038356,7]
[392113353,1761168642091,-184.86412945,0.00038356,7]
[392113354,1761168642100,-500.0,0.00038356,7]
[392113355,1761168642112,-168.08342146,0.00038356,7]
[392113356,1761168642122,-361.9815455,0.00038356,7]
[392113357,1761168642131,-221.92678929,0.00038356,7]
[392113358,1761168642140,-1000.0,0.00038356,2]
[392113359,1761168642150,-207.2156789,0.00038356,7]
[392113360,1761168642159,-414.98691223,0.00038356,7]
[392113361,1761168642168,-500.0,0.00038356,7]
[392113362,1761168642177,-500.0,0.00038356,7]
[392113363,1761168642186,-191.6044713,0.00038356,7]
[392113364,1761168642195,-333.24413904,0.00038356,7]
[392113365,1761168642204,-165.77753778,0.00038356,7]
[392113366,1761168642214,-500.0,0.00038356,7]
[392113367,1761168642223,-434.32562797,0.00038356,7]
[392113368,1761168642233,-228.85356341,0.00038356,7]
[392113369,1761168642243,-351.92241953,0.00038356,7]
[392113370,1761168642252,-500.0,0.00038356,7]
[392113371,1761168642261,-405.15904943,0.00038356,7]
[392113372,1761168642270,-419.36870839,0.00038356,7]
[392113373,1761168642278,-426.38365562,0.00038356,7]
[392113374,1761168642288,-157.36464837,0.00038356,7]
[392113375,1761168642297,-344.04213321,0.00038356,7]
[392113376,1761168642306,-397.04027071,0.00038356,7]
[392113377,1761168642315,-239.81925795,0.00038356,7]
[392113378,1761168642324,-268.89927894,0.00038356,7]
[392113379,1761168642334,-398.66436583,0.00038356,7]
[392113380,1761168642344,-163.06299538,0.00038356,7]
[392113381,1761168642356,-162.06073458,0.00038356,7]
[392113382,1761168642365,-500.0,0.00038356,7]
[392113383,1761168642374,-411.71166528,0.00038356,7]
[392113384,1761168642384,-162.57504482,0.00038356,7]
[392113385,1761168642393,-500.0,0.00038356,7]
[392113386,1761168642402,-282.85812094,0.00038356,7]
[392113387,1761168642412,-253.27809085,0.00038356,7]
[392113388,1761168642421,-422.00151591,0.00038356,7]
[392113389,1761168642430,-176.13463274,0.00038356,7]
[392113390,1761168642440,-329.29971541,0.00038356,7]
[392113391,1761168642449,-238.27158002,0.00038356,7]
[392113392,1761168642459,-511.43516717,0.00038356,7]
[392113393,1761168642468,-203.51236522,0.00038356,7]
[392113394,1761168642477,-364.24725454,0.00038356,7]
[392113395,1761168642488,-357.58399041,0.00038356,7]
[392113396,1761168642497,-438.88345363,0.00038356,7]
[392113397,1761168642506,-380.03902557,0.00038356,7]
[392113398,1761168642516,-450.13093254,0.00038356,7]
[392113399,1761168642525,-351.52003033,0.00038356,7]
[392113400,1761168642534,-500.0,0.00038356,5]
[392113401,1761168642543,-401.65619612,0.00038356,7]
[392113402,1761168642552,-500.0,0.00038356,7]
[392113403,1761168642561,-641.54126119,0.00038356,7]
[392113404,1761168642570,-500.0,0.00038356,7]
[392113405,1761168642580,-500.0,0.00038356,7]
[392113407,1761168642589,-334.81525611,0.00038356,7]
[392113409,1761168642599,-151.0,0.00038356,30]
[392113410,1761168642610,-163.93370302,0.00038356,7]
[392113411,1761168642619,-500.0,0.00038356,7]
[392113412,1761168642628,-249.64193611,0.00038356,7]
[392113413,1761168642637,-343.88757903,0.00038356,7]
[392113414,1761168642647,-191.99788514,0.00038356,7]
[392113415,1761168642656,-409.6478748,0.00038356,7]
[392113416,1761168642665,-315.29830206,0.00038356,7]
[392113417,1761168642675,-217.06509955,0.00038356,7]
[392113418,1761168642683,-228.00358019,0.00038356,7]
[392113419,1761168642693,-500.0,0.00038356,7]
[392113420,1761168642702,-500.0,0.00038356,2]
[392113421,1761168642711,-412.92574132,0.00038356,7]
[392113422,1761168642720,-3108.23,0.00038356,2]
[392113423,1761168642729,-366.22367806,0.00038356,7]
[392113424,1761168642738,-403.08049612,0.00038356,7]
[392113425,1761168642747,-582.36,0.00038356,7]
[392113426,1761168642757,-429.18404809,0.00038356,7]
[392113427,1761168642766,-387.22821303,0.00038356,7]
[392113428,1761168642775,-450.148172,0.00038356,7]
[392113429,1761168642784,-712.09,0.00038356,7]
[392113430,1761168642794,-151.0,0.00038356,2]
[392113431,1761168642870,-151.0,0.00038356,2]
[392113432,1761168642883,-1000.0,0.00038356,2]
[392113433,1761168642892,-401.64944066,0.00038356,7]
[392113434,1761168642902,-500.0,0.00038356,7]
[392113435,1761168642913,-3993.05,0.00038356,7]
[392113436,1761168642922,-260.29140891,0.00038356,7]
[392113437,1761168642931,-500.0,0.00038356,7]
[392113438,1761168642940,-500.0,0.00038356,7]
[392113439,1761168642949,-220.0075439,0.00038356,7]
[392113440,1761168642958,-378.55095098,0.00038356,7]
[392113441,1761168642967,-500.0,0.00038356,7]
[392113442,1761168642976,-500.0,0.00038356,7]
[392113443,1761168642985,-1615.11,0.00038356,7]
[392113444,1761168642994,-194.38090603,0.00038356,7]
[392113445,1761168643003,-390.87608033,0.00038356,7]
[392113446,1761168643012,-555.53,0.00038356,7]
[392113447,1761168643021,-151.0,0.00038356,30]
[392113448,1761168643031,-500.0,0.00038356,7]
[392113449,1761168643040,-500.0,0.00038356,7]
[392113450,1761168643049,-500.0,0.00038356,7]
[392113451,1761168643059,-446.22710663,0.00038356,7]
[392113452,1761168643068,-500.0,0.00038356,7]
[392113453,1761168643077,-175.25191809,0.00038356,7]
[392113454,1761168643087,-500.0,0.00038356,7]
[392113455,1761168643096,-500.0,0.00038356,7]
[392113456,1761168643107,-495.08913283,0.00038356,7]
[392113457,1761168643116,-394.23099781,0.00038356,7]
[392113458,1761168643126,-286.71816532,0.00038356,7]
[392113459,1761168643136,-302.63570934,0.00038356,7]
[392113460,1761168643145,-500.0,0.00038356,7]
[392113461,1761168643154,-356.25778686,0.00038356,7]
[392113462,1761168643163,-394.13726671,0.00038356,7]
[392113463,1761168643173,-210.69120597,0.00038356,7]
[392113464,1761168643182,-227.98918754,0.00038356,7]
[392113465,1761168643192,-229.89190728,0.00038356,7]
[392113466,1761168643201,-500.0,0.00038356,7]
[392113467,1761168643211,-500.0,0.00038356,7]
[392113468,1761168643220,-500.0,0.00038356,7]
[392113469,1761168643229,-500.0,0.00038356,7]
[392113470,1761168643238,-484.81908506,0.00038356,7]
[392113471,1761168643247,-190.22839087,0.00038356,7]
[392113472,1761168643256,-158.56603055,0.00038356,7]
[392113473,1761168643265,-396.10167826,0.00038356,7]
[392113474,1761168643274,-193.19471656,0.00038356,7]
[392113475,1761168643283,-386.35831016,0.00038356,7]
[392113476,1761168643293,-314.89028414,0.00038356,7]
[392113478,1761168643303,-500.0,0.00038356,7]
[392113479,1761168643312,-163.07001784,0.00038356,7]
[392113482,1761168643321,-504.7780878,0.00038356,7]
[392113483,1761168643331,-12709.91,0.00038356,3]
[392113484,1761168643340,-165.09232385,0.00038356,7]
[392113485,1761168643350,-639.56454551,0.00038356,7]
[392113487,1761168643361,-154.52149754,0.00038356,7]
[392113489,1761168643371,-272.55342807,0.00038356,7]
[392113491,1761168643380,-487.21162648,0.00038356,7]
[392113493,1761168643389,-390.72545126,0.00038356,7]
[392113494,1761168643399,-167.06908319,0.00038356,7]
[392113495,1761168643409,-293.00888997,0.00038356,7]
[392113496,1761168643418,-180.49577443,0.00038356,7]
[392113497,1761168643427,-500.0,0.00038356,7]
[392113498,1761168643437,-500.0,0.00038356,7]
[392113499,1761168643446,-633.30243733,0.00038356,7]
[392113500,1761168643456,-500.0,0.00038356,7]